fUST/lending_fUST_20240822
["ID","MTS","AMOUNT","RATE_DAILY","PERIOD"]
[335575873,1724337114466,-715.05,0.00023013,7]
[335575874,1724337114475,-500.0,0.00023013,7]
[335575875,1724337114485,-500.0,0.00023013,7]
[335575876,1724337114495,-500.0,0.00023013,7]
[335575877,1724337114504,-500.0,0.00023013,7]
[335575878,1724337114514,-1705.25,0.00023013,7]
[335575879,1724337114524,-155.16185001,0.00023013,7]
[335575880,1724337114534,-500.0,0.00023013,7]
[335575881,1724337114543,-500.0,0.00023013,7]
[335575882,1724337114554,-647.13,0.00023013,7]
[335575883,1724337114563,-500.0,0.00023013,7]
[335575884,1724337114572,-500.0,0.00023013,7]
[335575885,1724337114582,-500.0,0.00023013,7]
[335575886,1724337114591,-564.81,0.00023013,7]
[335575887,1724337114601,-500.0,0.00023013,7]
[335575888,1724337114823,-1137.6,0.00023013,7]
[335575889,1724337114833,-694.46,0.00023013,7]
[335575890,1724337114843,-1020.45,0.00023013,7]
[335575891,1724337114853,-713.79,0.00023013,7]
[335575892,1724337114863,-500.0,0.00023013,7]
[335575893,1724337114872,-699.08,0.00023013,7]
[335575894,1724337114884,-1436.03,0.00023013,7]
[335575895,1724337114896,-506.47367399,0.00023013,7]
[335575896,1724337114908,-3994.81,0.00023013,7]
[335575897,1724337114920,-500.0,0.00023013,7]
[335575898,1724337114931,-517.61754734,0.00023013,7]
[335575899,1724337114941,-500.0,0.00023013,7]
[335575900,1724337114951,-1198.53,0.00023013,7]
[335575901,1724337114963,-1033.59,0.00023013,7]
[335575902,1724337114973,-500.0,0.00023013,7]
[335575903,1724337114983,-500.0,0.00023013,7]
[335575904,1724337114992,-512.85,0.00023013,7]
[335575905,1724337115002,-700.58,0.00023013,7]
[335575906,1724337115012,-500.0,0.00023013,7]
[335575907,1724337115021,-500.0,0.00023013,7]
[335575908,1724337115035,-3031.45,0.00023013,7]
[335575909,1724337115049,-500.0,0.00023013,7]
[335575910,1724337115058,-500.0,0.00023013,7]
[335575911,1724337115068,-500.0,0.00023013,7]
[335575912,1724337115078,-1227.89,0.00023013,7]
[335575913,1724337115088,-3546.33,0.00023013,7]
[335575914,1724337115097,-662.72,0.00023013,7]
[335575915,1724337115106,-500.0,0.00023013,7]
[335575916,1724337115116,-1218.85,0.00023013,7]
[335575917,1724337115125,-740.65,0.00023013,7]
[335575918,1724337115135,-500.0,0.00023013,7]
[335575919,1724337115144,-420.46104159,0.00023013,7]
[335575920,1724337115153,-638.64,0.00023013,7]
[335575921,1724337115162,-500.0,0.00023013,7]
[335575922,1724337115172,-500.0,0.00023013,7]
[335575923,1724337115184,-500.0,0.00023013,7]
[335575924,1724337115193,-500.0,0.00023013,7]
[335575925,1724337115203,-500.0,0.00023013,7]
[335575926,1724337115215,-770.95,0.00023013,7]
[335575927,1724337115230,-355.21609439,0.00023013,7]
[335575928,1724337115241,-961.46,0.00023013,7]
[335575929,1724337115253,-500.0,0.00023013,7]
[335575930,1724337115264,-752.18,0.00023013,7]
[335575931,1724337115274,-888.74,0.00023013,7]
[335575932,1724337115285,-500.0,0.00023013,7]
[335575933,1724337115295,-575.3,0.00023013,7]
[335575934,1724337115305,-500.0,0.00023013,7]
[335575935,1724337115315,-500.0,0.00023013,7]
[335575936,1724337115324,-500.0,0.00023013,7]
[335575937,1724337115334,-605.15,0.00023013,2]
[335575938,1724337115344,-512.63608506,0.00023013,7]
[335575939,1724337115353,-592.91,0.00023013,7]
[335575940,1724337115363,-500.0,0.00023013,7]
[335575941,1724337115374,-624.37,0.00023013,7]
[335575942,1724337115385,-500.0,0.00023013,7]
[335575943,1724337115396,-500.0,0.00023013,7]
[335575944,1724337115406,-500.0,0.00023013,7]
[335575945,1724337115417,-967.76,0.00023013,7]
[335575946,1724337115427,-573.69,0.00023013,7]
[335575947,1724337115437,-500.0,0.00023013,7]
[335575948,1724337115447,-500.0,0.00023013,7]
[335575949,1724337115457,-500.0,0.00023013,7]
[335575950,1724337115467,-500.0,0.00023013,7]
[335575951,1724337115476,-500.0,0.00023013,7]
[335575952,1724337115486,-500.0,0.00023013,7]
[335575953,1724337115497,-500.0,0.00023013,7]
[335575954,1724337115508,-500.0,0.00023013,7]
[335575955,1724337115519,-500.0,0.00023013,7]
[335575956,1724337115530,-542.04,0.00023013,7]
[335575957,1724337115539,-1115.71,0.00023013,7]
[335575958,1724337115549,-838.02,0.00023013,7]
[335575959,1724337115558,-500.0,0.00023013,7]
[335575960,1724337115569,-500.0,0.00023013,7]
[335575961,1724337115579,-1873.86,0.00023013,7]
[335575962,1724337115589,-500.0,0.00023013,7]
[335575963,1724337115599,-1830.08,0.00023013,7]
[335575964,1724337115610,-2744.02,0.00023013,7]
[335575965,1724337115620,-500.0,0.00023013,7]
[335575966,1724337115632,-504.95887435,0.00023013,7]
[335575967,1724337115644,-500.0,0.00023013,7]
[335575968,1724337115655,-634.47,0.00023013,7]
[335575969,1724337115666,-1183.82,0.00023013,7]
[335575970,1724337115676,-890.77,0.00023013,7]
[335575971,1724337115686,-500.0,0.00023013,7]
[335575972,1724337115697,-500.0,0.00023013,7]
[335575973,1724337115707,-763.16,0.00023013,7]
[335575974,1724337115719,-1016.87,0.00023013,7]
[335575975,1724337115731,-997.99,0.00023013,7]
[335575976,1724337115741,-500.0,0.00023013,7]
[335575977,1724337115755,-500.0,0.00023013,7]
[335575978,1724337115765,-651.35,0.00023013,7]
[335575979,1724337115775,-500.0,0.00023013,7]
[335575980,1724337115788,-500.0,0.00023013,7]
[335575981,1724337115798,-500.0,0.00023013,7]
[335575982,1724337115808,-500.0,0.00023013,7]
[335575983,1724337115817,-159.5708583,0.00023013,7]
[335575984,1724337115827,-500.0,0.00023013,7]
[335575985,1724337115840,-715.99,0.00023013,7]
[335575986,1724337115852,-500.0,0.00023013,7]
[335575987,1724337115863,-1266.22,0.00023013,7]
[335575988,1724337115873,-1424.76,0.00023013,7]
[335575989,1724337115883,-670.35,0.00023013,7]
[335575990,1724337115895,-500.0,0.00023013,7]
[335575991,1724337115907,-890.6,0.00023013,7]
[335575992,1724337115917,-500.0,0.00023013,7]
[335575993,1724337115928,-587.3,0.00023013,7]
[335575994,1724337115939,-607.67,0.00023013,7]
[335575995,1724337115950,-500.0,0.00023013,7]
[335575996,1724337115962,-500.0,0.00023013,7]
[335575997,1724337115974,-500.0,0.00023013,7]
[335575998,1724337115984,-528.02,0.00023013,7]
[335575999,1724337115994,-500.0,0.00023013,7]
[335576000,1724337116004,-1496.75,0.00023013,7]
[335576001,1724337116014,-500.0,0.00023013,7]
[335576002,1724337116025,-1156.13,0.00023013,7]
[335576003,1724337116038,-500.0,0.00023013,7]
[335576004,1724337116048,-921.66,0.00023013,7]
[335576005,1724337116058,-503.16245608,0.00023013,7]
[335576006,1724337116069,-570.52,0.00023013,7]
[335576007,1724337116079,-924.93,0.00023013,7]
[335576008,1724337116089,-652.28,0.00023013,7]
[335576009,1724337116101,-963.38,0.00023013,7]
[335576010,1724337116111,-500.0,0.00023013,7]
[335576011,1724337116122,-697.46,0.00023013,7]
[335576012,1724337116142,-500.0,0.00023013,7]
[335576013,1724337116153,-1051.44,0.00023013,7]
[335576014,1724337116164,-500.0,0.00023013,7]
[335576015,1724337116175,-500.0,0.00023013,7]
[335576016,1724337116190,-500.0,0.00023013,7]
[335576017,1724337116200,-500.0,0.00023013,7]
[335576018,1724337116211,-724.14,0.00023013,7]
[335576019,1724337116224,-500.0,0.00023013,2]
[335576020,1724337116235,-500.0,0.00023013,7]
[335576021,1724337116246,-808.3,0.00023013,7]
[335576022,1724337116259,-667.93,0.00023013,7]
[335576023,1724337116269,-500.0,0.00023013,7]
[335576024,1724337116281,-727.12,0.00023013,7]
[335576025,1724337116292,-500.0,0.00023013,7]
[335576026,1724337116302,-500.0,0.00023013,7]
[335576027,1724337116314,-500.0,0.00023013,7]
[335576028,1724337116327,-500.0,0.00023013,7]
[335576029,1724337116337,-512.03505616,0.00023013,7]
[335576030,1724337116346,-500.0,0.00023013,7]
[335576031,1724337116357,-500.0,0.00023013,7]
[335576032,1724337116367,-560.96,0.00023013,7]
[335576033,1724337116377,-1126.21,0.00023013,7]
[335576034,1724337116388,-746.35,0.00023013,7]
[335576035,1724337116398,-603.24,0.00023013,7]
[335576036,1724337116408,-1425.13,0.00023013,7]
[335576037,1724337116419,-916.64,0.00023013,7]
[335576038,1724337116430,-500.0,0.00023013,7]
[335576039,1724337116440,-1028.48,0.00023013,7]
[335576040,1724337116450,-500.0,0.00023013,7]
[335576041,1724337116460,-500.0,0.00023013,7]
[335576042,1724337116471,-500.0,0.00023013,7]
[335576043,1724337116481,-860.76,0.00023013,7]
[335576044,1724337116491,-500.0,0.00023013,7]
[335576045,1724337116501,-500.0,0.00023013,7]
[335576046,1724337116512,-754.51,0.00023013,7]
[335576047,1724337116524,-500.0,0.00023013,7]
[335576048,1724337116537,-500.0,0.00023013,7]
[335576049,1724337116549,-538.48,0.00023013,7]
[335576050,1724337116560,-500.0,0.00023013,7]
[335576051,1724337116570,-595.55,0.00023013,7]
[335576052,1724337116581,-762.94,0.00023013,7]
[335576053,1724337116591,-1314.87,0.00023013,7]
[335576054,1724337116601,-500.0,0.00023013,7]
[335576055,1724337116611,-802.29,0.00023013,7]
[335576056,1724337116621,-500.0,0.00023013,7]
[335576057,1724337116630,-500.0,0.00023013,7]
[335576058,1724337116640,-899.02,0.00023013,7]
[335576059,1724337116650,-7996.98,0.00023013,7]
[335576060,1724337116660,-500.81,0.00023013,7]
[335576061,1724337116673,-879.16,0.00023013,7]
[335576062,1724337116683,-1309.03,0.00023013,7]
[335576063,1724337116694,-500.0,0.00023013,7]
[335576064,1724337116705,-1025.81,0.00023013,7]
[335576065,1724337116715,-836.99,0.00023013,7]
[335576066,1724337116726,-517.1,0.00023013,7]
[335576067,1724337116735,-701.2,0.00023013,7]
[335576068,1724337116745,-633.22,0.00023013,7]
[335576069,1724337116754,-502.36931025,0.00023013,7]
[335576070,1724337116764,-500.0,0.00023013,7]
[335576071,1724337116774,-860.08,0.00023013,7]
[335576072,1724337116784,-500.0,0.00023013,7]
[335576073,1724337116794,-1414.5,0.00023013,7]
[335576074,1724337116806,-500.0,0.00023013,7]
[335576075,1724337116818,-500.0,0.00023013,7]
[335576076,1724337116828,-500.0,0.00023013,7]
[335576077,1724337116838,-983.19,0.00023013,7]
[335576078,1724337116848,-1556.78,0.00023013,7]
[335576079,1724337116860,-729.98,0.00023013,7]
[335576080,1724337116869,-500.0,0.00023013,7]
[335576081,1724337116878,-972.14,0.00023013,7]
[335576082,1724337116888,-953.52,0.00023013,7]
[335576083,1724337116899,-500.0,0.00023013,7]
[335576084,1724337116911,-846.73,0.00023013,7]
[335576085,1724337116924,-500.0,0.00023013,7]
[335576086,1724337116934,-738.3,0.00023013,7]
[335576087,1724337116943,-500.0,0.00023013,7]
[335576088,1724337116952,-4559.07,0.00023013,7]
[335576089,1724337116963,-1040.74,0.00023013,7]
[335576090,1724337116974,-776.26,0.00023013,7]
[335576091,1724337116986,-713.41,0.00023013,7]
[335576092,1724337116996,-500.0,0.00023013,7]
[335576093,1724337117007,-502.93,0.00023013,7]
[335576094,1724337117019,-222.95640886,0.00023013,7]
[335576095,1724337117029,-500.0,0.00023013,7]
[335576096,1724337117040,-712.81,0.00023013,7]
[335576097,1724337117050,-574.44,0.00023013,7]
[335576098,1724337117060,-500.0,0.00023013,7]
[335576099,1724337117070,-753.0,0.00023013,7]
[335576100,1724337117080,-500.0,0.00023013,7]
[335576101,1724337117089,-644.46,0.00023013,7]
[335576102,1724337117099,-3014.58,0.00023013,7]
[335576103,1724337117109,-500.0,0.00023013,7]
[335576104,1724337117118,-500.0,0.00023013,7]
[335576105,1724337117128,-971.35,0.00023013,7]
[335576106,1724337117138,-500.0,0.00023013,7]
[335576107,1724337117147,-828.87,0.00023013,7]
[335576108,1724337117157,-793.89,0.00023013,7]
[335576109,1724337117166,-277.4858255,0.00023013,7]
[335576110,1724337117176,-500.0,0.00023013,7]
[335576111,1724337117189,-4804.15,0.00023013,7]
[335576112,1724337117199,-753.53,0.00023013,7]
[335576113,1724337117208,-536.81,0.00023013,7]
[335576114,1724337117217,-3219.17,0.00023013,7]
[335576115,1724337117229,-500.0,0.00023013,7]
[335576116,1724337117238,-908.95,0.00023013,7]
[335576117,1724337117247,-2110.08,0.00023013,7]
[335576118,1724337117258,-834.94,0.00023013,7]
[335576119,1724337117270,-602.89,0.00023013,7]
[335576120,1724337117280,-506.58057577,0.00023013,7]
[335576121,1724337117290,-500.0,0.00023013,7]
[335576122,1724337117299,-757.17,0.00023013,7]
[335576123,1724337117309,-3504.48,0.00023013,7]
[335576124,1724337117319,-682.2,0.00023013,7]
[335576125,1724337117329,-500.0,0.00023013,7]
[335576126,1724337117338,-1189.02,0.00023013,7]
[335576127,1724337117348,-805.36,0.00023013,7]
[335576128,1724337117357,-500.0,0.00023013,7]
[335576129,1724337117366,-500.0,0.00023013,7]
[335576130,1724337117376,-921.36,0.00023013,7]
[335576131,1724337117385,-500.0,0.00023013,7]
[335576132,1724337117395,-6311.13,0.00023013,7]
[335576133,1724337117405,-2064.66,0.00023013,7]
[335576134,1724337117416,-500.0,0.00023013,7]
[335576135,1724337117425,-500.0,0.00023013,7]
[335576136,1724337117435,-500.0,0.00023013,7]
[335576137,1724337117444,-500.0,0.00023013,7]
[335576138,1724337117454,-3117.7,0.00023013,7]
[335576139,1724337117463,-943.97,0.00023013,7]
[335576140,1724337117473,-2763.47,0.00023013,7]
[335576141,1724337117483,-500.0,0.00023013,7]
[335576142,1724337117492,-500.0,0.00023013,7]
[335576143,1724337117501,-1203.41,0.00023013,7]
[335576144,1724337117511,-742.76,0.00023013,7]
[335576145,1724337117520,-500.0,0.00023013,7]
[335576146,1724337117531,-500.0,0.00023013,7]
[335576147,1724337117540,-853.15,0.00023013,7]
[335576148,1724337117550,-8201.63,0.00023013,7]
[335576149,1724337117560,-500.0,0.00023013,7]
[335576150,1724337117569,-548.49,0.00023013,7]
[335576151,1724337117578,-662.18,0.00023013,7]
[335576152,1724337117587,-500.0,0.00023013,7]
[335576153,1724337117597,-503.92,0.00023013,7]
[335576154,1724337117606,-1222.39,0.00023013,7]
[335576155,1724337117616,-2232.84,0.00023013,7]
[335576156,1724337117626,-1020.24,0.00023013,7]
[335576157,1724337117635,-500.0,0.00023013,7]
[335576158,1724337117645,-500.0,0.00023013,7]
[335576159,1724337117654,-889.15,0.00023013,7]
[335576160,1724337117664,-500.0,0.00023013,7]
[335576161,1724337117673,-1378.56,0.00023013,7]
[335576162,1724337117682,-1300.47,0.00023013,7]
[335576163,1724337117692,-500.0,0.00023013,7]
[335576164,1724337117701,-500.0,0.00023013,7]
[335576165,1724337117711,-500.0,0.00023013,7]
[335576166,1724337117720,-500.0,0.00023013,7]
[335576167,1724337117730,-590.97,0.00023013,7]
[335576168,1724337117740,-3423.46,0.00023013,7]
[335576169,1724337117749,-751.09,0.00023013,7]
[335576170,1724337117759,-574.33,0.00023013,7]
[335576171,1724337117768,-500.0,0.00023013,7]
[335576172,1724337117777,-500.0,0.00023013,7]
[335576173,1724337117788,-6598.36,0.00023013,7]
[335576174,1724337117798,-500.0,0.00023013,7]
[335576175,1724337117809,-1292.32,0.00023013,7]
[335576176,1724337117820,-501.33,0.00023013,7]
[335576177,1724337117830,-500.0,0.00023013,2]
[335576178,1724337117840,-1155.5,0.00023013,7]
[335576179,1724337117850,-500.0,0.00023013,7]
[335576180,1724337117862,-507.2488708,0.00023013,7]
[335576181,1724337117874,-500.0,0.00023013,7]
[335576182,1724337117886,-2752.94,0.00023013,7]
[335576183,1724337117897,-809.66,0.00023013,7]
[335576184,1724337117909,-501.44,0.00023013,7]
[335576185,1724337117919,-509.69,0.00023013,7]
[335576186,1724337117930,-5923.55,0.00023013,7]
[335576187,1724337117940,-2097.57,0.00023013,7]
[335576188,1724337117949,-500.0,0.00023013,7]
[335576189,1724337117959,-852.22,0.00023013,7]
[335576190,1724337117971,-500.0,0.00023013,7]
[335576191,1724337117985,-500.0,0.00023013,7]
[335576192,1724337117995,-500.0,0.00023013,7]
[335576193,1724337118004,-3408.71,0.00023013,7]
[335576194,1724337118014,-544.68,0.00023013,7]
[335576195,1724337118024,-500.0,0.00023013,7]
[335576196,1724337118035,-500.0,0.00023013,7]
[335576197,1724337118044,-582.07,0.00023013,7]
[335576198,1724337118053,-542.66898524,0.00023013,7]
[335576199,1724337118063,-1232.75,0.00023013,7]
[335576200,1724337118074,-2053.08,0.00023013,7]
[335576201,1724337118084,-610.51,0.00023013,7]
[335576202,1724337118094,-500.0,0.00023013,7]
[335576203,1724337118104,-500.0,0.00023013,7]
[335576204,1724337118114,-317.37631729,0.00023013,7]
[335576205,1724337118124,-2144.06,0.00023013,7]
[335576206,1724337118134,-750.0,0.0002306,2]
[335576207,1724337118144,-453.86465756,0.000231,4]
[335576208,1724337118155,-277.72945572,0.00023123,2]
[335576209,1724337118165,-488.52302091,0.0002332,4]
[335576210,1724337118180,-465.61564405,0.00023328,2]
[335576211,1724337118191,-67922.63549366,0.00023459,2]
[335576212,1724337118201,-2325.01,0.000235,7]
[335576213,1724337118212,-2839.66,0.000235,14]
[335576214,1724337118224,-645.1529269,0.00023507,2]
[335576215,1724337118236,-154.80649189,0.00023538,2]
[335576216,1724337118248,-1111.3564694,0.0002354,2]
[335576217,1724337118261,-398.94,0.00023558,2]
[335576218,1724337118273,-500.0,0.00023561,7]
[335576219,1724337118283,-500.0,0.00023561,7]
[335576220,1724337118294,-613.79,0.00023561,7]
[335576221,1724337118305,-657.18,0.00023561,7]
[335576222,1724337118315,-500.0,0.00023561,7]
[335576223,1724337118325,-484.27159394,0.00023561,7]
[335576224,1724337118335,-500.0,0.00023561,7]
[335576225,1724337118344,-500.0,0.00023561,7]
[335576226,1724337118354,-629.91,0.00023561,7]
[335576227,1724337118364,-500.0,0.00023561,7]
[335576228,1724337118373,-500.0,0.00023561,7]
[335576229,1724337118383,-500.0,0.00023561,7]
[335576230,1724337118393,-500.0,0.00023561,7]
[335576231,1724337118404,-659.09,0.00023561,7]
[335576232,1724337118413,-500.0,0.00023561,7]
[335576233,1724337118423,-1390.91,0.00023561,7]
[335576234,1724337118435,-558.51,0.00023561,7]
[335576235,1724337118445,-500.0,0.00023561,7]
[335576236,1724337118456,-500.0,0.00023561,7]
[335576237,1724337118466,-500.0,0.00023561,7]
[335576238,1724337118477,-648.87,0.00023561,7]
[335576239,1724337118487,-710.07,0.00023561,7]
[335576240,1724337118500,-567.83346248,0.00023561,7]
[335576241,1724337118510,-318.30942702,0.00023561,7]
[335576242,1724337118520,-500.0,0.00023561,7]
[335576243,1724337118531,-500.0,0.00023561,7]
[335576244,1724337118552,-500.0,0.00023561,7]
[335576245,1724337118562,-500.0,0.00023561,7]
[335576246,1724337118572,-542.73,0.00023561,7]
[335576247,1724337118582,-957.73,0.00023561,7]
[335576248,1724337118592,-500.0,0.00023561,7]
[335576249,1724337118601,-500.0,0.00023561,7]
[335576250,1724337118810,-500.0,0.00023561,7]
[335576251,1724337118821,-500.0,0.00023561,7]
[335576252,1724337118832,-500.0,0.00023561,7]
[335576253,1724337118841,-500.0,0.00023561,7]
[335576254,1724337118852,-200.0,0.00023561,7]
[335576255,1724337118862,-500.0,0.00023561,7]
[335576256,1724337118872,-523.67,0.00023561,7]
[335576257,1724337118882,-500.0,0.00023561,7]
[335576258,1724337118892,-500.0,0.00023561,7]
[335576259,1724337118901,-784.33,0.00023561,7]
[335576260,1724337118911,-500.0,0.00023561,7]
[335576261,1724337118921,-500.0,0.00023561,7]
[335576262,1724337118931,-544.33,0.00023561,7]
[335576263,1724337118941,-569.23211043,0.00023561,7]
[335576264,1724337118954,-522.52,0.00023561,7]
[335576265,1724337118964,-560.96750461,0.00023561,7]
[335576266,1724337118974,-500.0,0.00023561,7]
[335576267,1724337118984,-629.62,0.00023561,7]
[335576268,1724337118994,-500.0,0.00023561,7]
[335576269,1724337119004,-913.02,0.00023561,7]
[335576270,1724337119015,-500.0,0.00023561,7]
[335576271,1724337119025,-500.0,0.00023561,7]
[335576272,1724337119038,-500.0,0.00023561,7]
[335576273,1724337119047,-500.0,0.00023561,7]
[335576274,1724337119056,-549.7,0.00023561,7]
[335576275,1724337119066,-461.10562913,0.00023561,7]
[335576276,1724337119076,-500.0,0.00023561,7]
[335576277,1724337119086,-500.0,0.00023561,7]
[335576278,1724337119095,-500.0,0.00023561,7]
[335576279,1724337119105,-634.18,0.00023561,7]
[335576280,1724337119115,-516.37387156,0.00023561,7]
[335576281,1724337119124,-1212.62,0.00023561,7]
[335576282,1724337119134,-500.0,0.00023561,7]
[335576283,1724337119144,-508.49228247,0.00023561,7]
[335576284,1724337119154,-500.0,0.00023561,7]
[335576285,1724337119163,-524.038436,0.00023561,7]
[335576286,1724337119174,-500.0,0.00023561,7]
[335576287,1724337119187,-500.0,0.00023561,7]
[335576288,1724337119197,-500.0,0.00023561,7]
[335576289,1724337119208,-500.0,0.00023561,7]
[335576290,1724337119217,-507.75984791,0.00023561,7]
[335576291,1724337119229,-500.0,0.00023561,7]
[335576292,1724337119240,-759.12,0.00023561,7]
[335576293,1724337119250,-500.0,0.00023561,7]
[335576294,1724337119262,-1005.08,0.00023561,7]
[335576295,1724337119272,-500.0,0.00023561,7]
[335576296,1724337119283,-500.0,0.00023561,7]
[335576297,1724337119293,-660.45,0.00023561,7]
[335576298,1724337119304,-500.0,0.00023561,7]
[335576299,1724337119314,-500.0,0.00023561,7]
[335576300,1724337119324,-603.86,0.00023561,7]
[335576301,1724337119334,-757.65,0.00023561,7]
[335576302,1724337119344,-795.14,0.00023561,7]
[335576303,1724337119354,-500.0,0.00023561,7]
[335576304,1724337119364,-500.0,0.00023561,7]
[335576305,1724337119374,-762.91,0.00023561,7]
[335576306,1724337119384,-500.0,0.00023561,7]
[335576307,1724337119395,-500.0,0.00023561,7]
[335576308,1724337119409,-500.0,0.00023561,7]
[335576309,1724337119419,-500.0,0.00023561,7]
[335576310,1724337119429,-526.15,0.00023561,7]
[335576311,1724337119440,-500.0,0.00023561,7]
[335576312,1724337119451,-500.0,0.00023561,7]
[335576313,1724337119462,-279.07540072,0.00023561,7]
[335576314,1724337119472,-1082.44,0.00023561,7]
[335576315,1724337119482,-500.0,0.00023561,7]
[335576316,1724337119493,-761.53,0.00023561,7]
[335576317,1724337119503,-500.0,0.00023561,7]
[335576318,1724337119513,-500.0,0.00023561,7]
[335576319,1724337119523,-505.13746462,0.00023561,7]
[335576320,1724337119535,-500.0,0.00023561,7]
[335576321,1724337119546,-500.0,0.00023561,7]
[335576322,1724337119556,-500.0,0.00023561,7]
[335576323,1724337119566,-500.0,0.00023561,7]
[335576324,1724337119577,-160.73051801,0.00023561,7]
[335576325,1724337119587,-808.33,0.00023561,7]
[335576326,1724337119597,-500.0,0.00023561,7]
[335576327,1724337119608,-715.05,0.00023561,7]
[335576328,1724337119618,-500.0,0.00023561,7]
[335576329,1724337119628,-500.0,0.00023561,7]
[335576330,1724337119638,-500.0,0.00023561,7]
[335576331,1724337119648,-500.0,0.00023561,7]
[335576332,1724337119659,-1705.25,0.00023561,7]
[335576333,1724337119669,-500.0,0.00023561,7]
[335576334,1724337119679,-500.0,0.00023561,7]
[335576335,1724337119690,-647.13,0.00023561,7]
[335576336,1724337119700,-500.0,0.00023561,7]
[335576337,1724337119712,-500.0,0.00023561,7]
[335576338,1724337119722,-500.0,0.00023561,7]
[335576339,1724337119734,-564.81,0.00023561,7]
[335576340,1724337119744,-580.76130296,0.00023561,7]
[335576341,1724337119754,-1137.6,0.00023561,7]
[335576342,1724337119764,-694.46,0.00023561,7]
[335576343,1724337119775,-1020.45,0.00023561,7]
[335576344,1724337119786,-713.79,0.00023561,7]
[335576345,1724337119796,-500.0,0.00023561,7]
[335576346,1724337119807,-699.08,0.00023561,7]
[335576347,1724337119817,-1436.03,0.00023561,7]
[335576348,1724337119829,-3994.81,0.00023561,7]
[335576349,1724337119840,-500.0,0.00023561,7]
[335576350,1724337119850,-500.0,0.00023561,7]
[335576351,1724337119861,-1198.53,0.00023561,7]
[335576352,1724337119872,-1033.59,0.00023561,7]
[335576353,1724337119883,-500.0,0.00023561,7]
[335576354,1724337119894,-500.0,0.00023561,7]
[335576355,1724337119904,-512.85,0.00023561,7]
[335576356,1724337119916,-700.58,0.00023561,7]
[335576357,1724337119927,-516.97603703,0.00023561,7]
[335576358,1724337119937,-500.0,0.00023561,7]
[335576359,1724337119948,-3031.45,0.00023561,7]
[335576360,1724337119959,-333.31031236,0.00023561,7]
[335576361,1724337119969,-500.0,0.00023561,7]
[335576362,1724337119979,-500.0,0.00023561,7]
[335576363,1724337119989,-1227.89,0.00023561,7]
[335576364,1724337120000,-3546.33,0.00023561,7]
[335576365,1724337120010,-662.72,0.00023561,7]
[335576366,1724337120021,-500.0,0.00023561,7]
[335576367,1724337120031,-1218.85,0.00023561,7]
[335576368,1724337120041,-740.65,0.00023561,7]
[335576369,1724337120051,-500.0,0.00023561,7]
[335576370,1724337120062,-638.64,0.00023561,7]
[335576371,1724337120072,-500.0,0.00023561,7]
[335576372,1724337120082,-500.0,0.00023561,7]